bitfinex/quotes_SOLUSD_20250217
["timestamp","ask_amount","ask_price","bid_price","bid_amount"]
[1739780811906,16.39649649,181.98,181.97,13.41184853]
[1739780812112,16.39649649,181.98,181.9,16.33349649]
[1739780812323,16.33349649,181.96,181.91,13.41184853]
[1739780812620,16.33349649,181.97,181.91,16.33349649]
[1739780812797,16.33349649,181.97,181.92,13.41184853]
[1739780813805,3.8469,181.96,181.92,13.41184853]
[1739780814009,3.8469,181.96,181.91,13.41184853]
[1739780814318,20.18039649,181.96,181.89,29.74534502]
[1739780814929,20.18039649,181.96,181.91,13.41184853]
[1739780815316,20.18039649,181.96,181.89,16.33349649]
[1739780815639,20.18039649,181.96,181.9,13.41184853]
[1739780816911,16.33349649,181.95,181.89,13.41184853]
[1739780817605,16.33349649,181.97,181.91,13.41184853]
[1739780817804,0.063,181.98,181.93,13.41184853]
[1739780819034,3.9095,181.98,181.93,13.41184853]
[1739780819908,0.063,181.98,181.93,13.41184853]
[1739780820227,20.0,181.97,181.93,33.59284502]
[1739780820411,0.063,181.98,181.95,13.41184853]
[1739780820814,0.063,181.98,181.94,13.41184853]
[1739780824736,16.33349649,181.97,181.9,16.33349649]
[1739780824945,16.39649649,181.98,181.92,13.41184853]
[1739780825108,0.063,181.98,181.94,29.74534502]
[1739780825639,16.39649649,181.98,181.93,13.41184853]
[1739780825943,16.39649649,181.98,181.91,16.33349649]
[1739780826238,16.39649649,181.98,181.92,13.41184853]
[1739780826538,20.24319649,181.98,181.92,13.41184853]
[1739780826737,16.33349649,181.97,181.9,20.18149649]
[1739780826938,16.33349649,181.97,181.91,13.41184853]
[1739780827365,16.33349649,181.97,181.92,13.41184853]
[1739780828027,16.33349649,181.95,181.89,16.33349649]
[1739780828524,16.33349649,181.94,181.88,0.03]
[1739780828911,16.33349649,181.94,181.88,13.44184853]
[1739780829111,16.33349649,181.95,181.88,33.62394502]
[1739780829326,16.33349649,181.94,181.88,13.44184853]
[1739780829743,16.33349649,181.94,181.88,33.62394502]
[1739780830739,20.18089649,181.94,181.88,29.77534502]
[1739780831019,20.18089649,181.94,181.88,13.44184853]
[1739780831725,16.33349649,181.94,181.88,33.62394502]
[1739780832034,40.18069649,181.95,181.88,29.77534502]
[1739780832536,36.33349649,181.95,181.88,29.77534502]
[1739780832735,36.33349649,181.95,181.88,33.62394502]
[1739780832948,16.33349649,181.94,181.88,13.44184853]
[1739780833154,16.33349649,181.93,181.88,13.44184853]
[1739780833358,16.33349649,181.93,181.88,0.03]
[1739780834533,20.18129649,181.93,181.88,0.03]
[1739780834944,16.33349649,181.91,181.88,0.03]
[1739780836672,20.18169649,181.91,181.88,0.03]
[1739780837464,3.8482,181.91,181.88,0.03]
[1739780837840,16.33349649,181.9,181.88,0.03]
[1739780838057,20.18169649,181.91,181.88,0.03]
[1739780838261,16.33349649,181.9,181.88,0.03]
[1739780839048,3.8484,181.89,181.88,0.03]
[1739780839245,20.0,181.89,181.88,0.03]
[1739780840358,36.33349649,181.89,181.88,0.03]
[1739780840539,16.33349649,181.89,181.88,0.03]
[1739780841074,40.18189649,181.89,181.88,0.03]
[1739780842081,20.18189649,181.89,181.88,0.03]
[1739780844668,14.31800589,181.89,181.88,0.03]
[1739780845551,3.8467,181.97,181.88,10.49960589]
[1739780845759,10.46960589,181.96,181.89,10.46960589]
[1739780845957,10.46960589,181.96,181.9,13.41184853]
[1739780846345,0.063,181.95,181.9,13.41184853]
[1739780846966,20.0,181.94,181.9,13.41184853]
[1739780847154,20.0,181.93,181.9,13.41184853]
[1739780847355,3.8475,181.94,181.88,10.49960589]
[1739780847557,3.8475,181.94,181.89,13.41184853]
[1739780847762,20.0,181.93,181.89,13.41184853]
[1739780848067,20.0,181.93,181.89,23.88145442]
[1739780848579,20.0,181.94,181.89,16.34347778]
[1739780848773,20.0,181.93,181.9,13.41184853]
[1739780848958,20.0,181.93,181.89,13.41184853]
[1739780849349,23.8474,181.94,181.89,13.41184853]
[1739780849976,20.0,181.93,181.89,13.41184853]
[1739780850976,20.0,181.93,181.9,13.41184853]
[1739780852768,0.063,181.95,181.9,29.75532631]
[1739780853466,20.0,181.94,181.9,29.75532631]
[1739780853867,0.063,181.95,181.92,16.34347778]
[1739780854076,0.063,181.95,181.94,29.75532631]
[1739780855166,0.063,181.95,181.93,16.34347778]
[1739780855678,0.063,181.95,181.94,13.41184853]
[1739780855982,0.063,181.95,181.94,29.75532631]
[1739780856797,0.063,181.95,181.94,33.26299302]
[1739780857175,0.063,181.95,181.94,16.91951524]
[1739780858477,0.063,181.95,181.94,33.26299302]
[1739780860989,0.063,181.95,181.94,37.11039302]
[1739780861375,0.063,181.95,181.94,33.26299302]
[1739780862571,0.063,181.95,181.94,37.11039302]
[1739780862974,0.063,181.98,181.96,13.41184853]
[1739780863179,0.063,181.98,181.97,54.32690409]
[1739780863388,0.063,181.98,181.97,55.32690409]
[1739780863567,0.063,182.01,181.98,14.41184853]
[1739780863772,0.063,182.01,182.0,29.75532631]
[1739780864467,0.063,182.01,182.0,35.42523946]
[1739780864676,0.063,182.01,182.0,38.93290617]
[1739780866675,0.063,182.03,182.02,3.8457]
[1739780866998,0.063,182.03,182.02,21.01287168]
[1739780867298,0.063,182.03,182.02,29.75532631]
[1739780867502,0.063,182.03,182.02,33.26299302]
[1739780868581,0.063,182.03,182.02,37.10869302]
[1739780869884,0.063,182.04,182.03,13.41184853]
[1739780870101,0.063,182.04,182.03,31.578968]
[1739780870408,0.063,182.04,182.03,29.75532631]
[1739780870607,0.063,182.04,182.03,10.43939007]
[1739780870780,0.063,182.04,182.03,27.35890531]
[1739780870979,0.063,182.04,182.03,31.20440531]
[1739780872613,0.063,182.04,182.03,27.35890531]
[1739780873608,20.063,182.04,182.03,3.50766671]
[1739780873790,30.50239007,182.04,182.03,3.50766671]
[1739780874107,30.50239007,182.04,182.02,1.0]
[1739780874402,14.28489007,182.03,182.02,1.0]
[1739780874612,3.8455,182.03,182.02,1.0]
[1739780874784,14.28489007,182.03,182.02,1.0]
[1739780874984,3.8455,182.03,182.02,14.41184853]
[1739780875604,14.28489007,182.03,182.02,1.0]
[1739780876731,20.17972176,182.03,182.02,1.0]
[1739780878903,20.0,182.01,182.0,0.03]
[1739780879231,36.33422176,182.01,182.0,0.03]
[1739780880547,49.79492176,182.01,181.9,16.33422176]
[1739780880834,16.33422176,181.97,181.9,16.33422176]
[1739780881031,16.33422176,181.97,181.91,13.41184853]
[1739780881334,16.33422176,181.97,181.91,29.74607029]
[1739780882732,16.33422176,181.98,181.91,29.74607029]
[1739780882933,20.18072176,181.98,181.91,29.74607029]
[1739780883134,3.8465,181.98,181.93,13.41184853]
[1739780884414,16.33422176,181.96,181.9,29.74607029]
[1739780884608,3.8465,181.98,181.9,29.74607029]
[1739780884827,16.33422176,181.97,181.9,29.74607029]
[1739780885008,3.8469,181.96,181.9,29.74607029]
[1739780886047,3.8469,181.96,181.92,13.41184853]
[1739780886616,16.33422176,181.94,181.89,0.03]
[1739780886815,3.8478,181.92,181.89,0.03]
[1739780887738,20.18202176,181.92,181.89,0.03]
[1739780887938,16.33422176,181.91,181.89,0.03]
[1739780888315,20.18202176,181.92,181.89,0.03]
[1739780889443,36.33422176,181.9,181.89,0.03]
[1739780890245,20.0,181.9,181.89,0.03]
[1739780891227,136.5,181.91,181.89,13.44184853]
[1739780891422,3.8474,181.95,181.9,29.74607029]
[1739780891620,3.847,181.96,181.91,29.74607029]
[1739780892723,20.0,181.93,181.91,13.41184853]
[1739780893342,20.0,181.93,181.89,16.36422176]
[1739780893519,36.33422176,181.94,181.89,0.03]
[1739780893722,16.33422176,181.93,181.89,0.03]
[1739780894245,36.33422176,181.94,181.89,13.44184853]
[1739780894618,3.8476,181.93,181.89,0.03]
[1739780894826,20.18182176,181.93,181.89,0.03]
[1739780896246,16.33422176,181.92,181.89,0.03]
[1739780896947,3.848,181.91,181.89,0.03]
[1739780898031,23.848,181.91,181.89,0.03]
[1739780899537,3.848,181.91,181.89,0.03]
[1739780904251,20.18222176,181.91,181.89,0.03]
[1739780904645,3.848,181.91,181.89,0.03]
[1739780905037,23.8478,181.92,181.89,0.03]
[1739780906955,20.0,181.92,181.89,0.03]
[1739780907164,20.0,181.92,181.89,13.44184853]
[1739780907467,3.8472,181.95,181.9,13.41184853]
[1739780907759,20.0,181.93,181.9,13.41184853]
[1739780908131,20.0,181.93,181.89,13.44184853]
[1739780908660,20.0,181.93,181.9,13.41184853]
[1739780909533,16.33422176,181.96,181.9,13.41184853]
[1739780909739,3.8473,181.95,181.9,13.41184853]
[1739780910665,3.8473,181.95,181.89,16.36422176]
[1739780910666,14.30814912,181.95,181.89,13.44184853]
[1739780910868,3.8473,181.95,181.89,23.90269765]
[1739780911241,14.30814912,181.95,181.89,13.44184853]
[1739780911441,10.46084912,181.94,181.89,0.03]
[1739780911641,14.30844912,181.93,181.89,0.03]
[1739780912368,3.8476,181.93,181.89,0.03]
[1739780912740,3.8476,181.93,181.89,10.49084912]
[1739780912944,82.3,181.97,181.91,10.46084912]
[1739780913161,3.8469,181.96,181.91,10.46084912]
[1739780913372,3.8469,181.96,181.93,13.41184853]
[1739780913750,3.8469,181.96,181.9,23.87269765]
[1739780914090,3.8468,181.97,181.93,13.41184853]
[1739780914774,3.8468,181.97,181.9,16.34040891]
[1739780914775,20.18720891,181.97,181.9,16.34040891]
[1739780914955,20.18720891,181.97,181.89,1.6732]
[1739780914956,36.34040891,181.96,181.91,13.41184853]
[1739780915553,36.34040891,181.96,181.9,13.41184853]
[1739780915756,20.0,181.96,181.92,13.41184853]
[1739780915953,20.0,181.95,181.93,29.75225744]
[1739780916153,3.8466,181.98,181.93,29.75225744]
[1739780916461,16.40340891,182.0,181.95,29.75225744]
[1739780916462,3.8463,181.99,181.95,29.75225744]
[1739780916667,23.8463,181.99,181.95,29.75225744]
[1739780916969,3.8463,181.99,181.93,16.34040891]
[1739780917502,3.8463,181.99,181.94,13.41184853]
[1739780917682,40.18670891,181.99,181.94,13.41184853]
[1739780917977,23.8463,181.99,181.94,13.41184853]
[1739780918152,20.0,181.98,181.95,13.41184853]
[1739780918481,20.0,181.98,181.95,29.75225744]
[1739780918786,0.063,182.0,181.97,13.41184853]
[1739780919083,20.063,182.0,181.97,13.41184853]
[1739780919586,20.063,182.0,181.96,13.41184853]
[1739780919880,0.063,182.0,181.96,13.41184853]
[1739780920069,23.9091,182.0,181.99,13.41184853]
[1739780920455,40.24950891,182.0,181.99,13.41184853]
[1739780921281,40.24950891,182.0,181.98,3.54394442]
[1739780921489,16.34040891,181.99,181.98,3.54394442]
[1739780921684,16.34040891,181.99,181.92,16.34040891]
[1739780921685,16.34040891,181.99,181.93,13.41184853]
[1739780922452,40.24950891,182.0,181.94,29.75225744]
[1739780922660,3.9091,182.0,181.94,29.75225744]
[1739780922856,20.0,181.98,181.94,29.75225744]
[1739780923171,20.0,181.98,181.96,13.41184853]
[1739780923480,3.8466,181.98,181.96,13.41184853]
[1739780924280,20.0,181.99,181.97,3.54557041]
[1739780924468,23.8465,181.99,181.97,3.54557041]
[1739780924778,20.0,181.99,181.98,13.41184853]
[1739780926173,0.063,182.0,181.98,29.75225744]
[1739780926385,0.063,182.0,181.98,33.29782785]
[1739780926655,0.063,182.0,181.99,29.75225744]
[1739780927399,0.063,182.0,181.99,33.29782785]
[1739780928187,0.063,182.0,181.99,37.14412785]
[1739780928491,0.063,182.0,181.99,37.96799965]
[1739780929170,0.063,182.02,182.0,13.41184853]
[1739780929377,0.063,182.02,182.01,30.57606318]
[1739780930295,0.063,182.02,182.01,34.42196318]
[1739780930491,0.063,182.02,182.01,33.59815744]
[1739780931195,0.063,182.02,182.01,37.14372785]
[1739780934184,0.063,182.05,182.02,13.41184853]
[1739780934495,0.063,182.05,182.04,16.34040891]
[1739780934705,0.063,182.05,182.04,29.75225744]
[1739780936384,16.40340891,182.05,181.97,1.5393]
[1739780936704,10.45215333,182.03,181.97,11.99145333]
[1739780938189,0.063,182.05,182.0,10.45215333]
[1739780938495,0.063,182.05,181.99,10.45215333]
[1739780938685,10.51515333,182.05,181.99,10.45215333]
[1739780939290,10.45215333,182.03,181.97,10.45215333]
[1739780939494,10.45215333,182.03,181.98,13.41184853]
[1739780939989,10.51515333,182.05,181.98,10.45215333]
[1739780940197,0.063,182.05,181.99,10.45215333]
[1739780940507,0.063,182.05,182.0,13.41184853]
[1739780941004,16.38869448,182.05,182.0,13.41184853]
[1739780942315,16.38869448,182.05,181.99,16.32569448]
[1739780942316,16.32569448,182.04,181.95,3.8471]
[1739780942483,16.32569448,182.04,181.97,16.32569448]
[1739780942684,3.8455,182.03,181.98,29.73754301]
[1739780943413,20.23389448,182.05,181.98,33.26293992]
[1739780943983,16.32569448,182.04,181.98,16.93724544]
[1739780944183,16.32569448,182.04,181.98,17.00024544]
[1739780944393,20.0,182.04,181.98,17.00024544]
[1739780944607,36.32569448,182.04,181.98,13.47484853]
[1739780944795,16.38869448,182.05,181.98,33.64704301]
[1739780945007,0.063,182.05,182.0,16.32569448]
[1739780945197,0.063,182.05,182.02,29.73754301]
[1739780945986,0.063,182.05,182.04,13.41184853]
[1739780946287,0.063,182.05,182.04,29.73754301]
[1739780946714,0.063,182.05,182.01,3.8459]
[1739780946901,0.063,182.05,182.04,16.32569448]
[1739780947091,0.063,182.05,182.02,16.32569448]
[1739780947293,0.063,182.05,182.0,1.5188]
[1739780947494,16.32569448,182.04,181.98,20.23519448]
[1739780947807,0.063,182.05,181.99,29.73754301]
[1739780947991,0.063,182.05,182.01,13.41184853]
[1739780948515,16.38869448,182.05,181.99,29.73754301]
[1739780948690,20.23379448,182.05,181.99,29.73754301]
[1739780949412,20.23379448,182.05,182.01,13.41184853]
[1739780949598,3.9081,182.05,182.01,13.41184853]
[1739780949983,20.23379448,182.05,182.01,13.41184853]
[1739780951513,16.32569448,182.04,182.01,13.41184853]
[1739780951681,16.32569448,182.04,181.98,0.063]
[1739780951881,3.8455,182.03,181.98,13.47484853]
[1739780952187,16.32569448,182.04,181.98,13.47484853]
[1739780952389,20.23399448,182.05,181.98,29.80054301]
[1739780952604,23.9083,182.05,182.0,13.41184853]
[1739780952912,40.23399448,182.05,182.0,13.41184853]
[1739780953089,16.32569448,182.04,182.0,13.41184853]
[1739780953284,16.32569448,182.03,182.0,13.41184853]
[1739780954210,3.8457,182.02,182.0,13.41184853]
[1739780954708,3.8457,182.02,181.98,0.063]
[1739780954907,20.17139448,182.02,181.98,0.063]
[1739780955497,16.32569448,182.0,181.98,0.063]
[1739780956101,20.17139448,182.02,181.98,0.063]
[1739780956405,16.32569448,182.02,181.98,0.063]
[1739780956595,16.32569448,182.03,181.98,0.063]
[1739780957089,0.063,182.05,182.02,13.41184853]
[1739780957797,0.063,182.05,182.03,13.41184853]
[1739780958091,0.063,182.05,182.03,29.73754301]
[1739780958287,0.063,182.05,182.01,3.8458]
[1739780958288,0.063,182.05,182.02,29.73754301]
[1739780958613,0.063,182.05,182.02,13.41184853]
[1739780958916,0.063,182.05,182.01,13.41184853]
[1739780959795,0.063,182.05,182.03,13.41184853]
[1739780960203,16.38869448,182.05,182.03,13.41184853]
[1739780960603,16.32569448,182.04,182.03,13.41184853]
[1739780961106,0.063,182.05,182.03,13.41184853]
[1739780961411,0.063,182.05,182.0,13.41184853]
[1739780961814,3.9081,182.05,182.0,13.41184853]
[1739780961989,20.23379448,182.05,181.99,13.41184853]
[1739780962190,0.063,182.05,181.99,29.73754301]
[1739780962408,0.063,182.05,181.99,33.58384301]
[1739780962606,0.063,182.05,182.0,3.54472636]
[1739780962801,3.9081,182.05,182.0,3.54472636]
[1739780963022,16.32569448,182.04,182.0,3.54472636]
[1739780963391,20.23379448,182.05,182.0,3.54472636]
[1739780964096,20.23379448,182.05,182.01,3.54472636]
[1739780964415,16.32569448,182.04,182.01,3.54472636]
[1739780965099,16.32569448,182.02,182.01,3.54472636]
[1739780965621,16.32569448,182.02,182.01,16.95657489]
[1739780965795,16.32569448,182.03,182.02,3.54472636]
[1739780966192,16.32569448,182.04,182.03,13.41184853]
[1739780966687,20.17099448,182.04,182.03,13.41184853]
[1739780967115,20.17099448,182.04,181.98,0.063]
[1739780967313,16.32569448,182.03,181.98,0.063]
[1739780968623,10.45138844,182.03,181.98,0.063]
[1739780968911,10.45138844,182.02,182.0,13.41184853]
[1739780969817,10.45138844,182.02,182.01,3.54971549]
[1739780970898,14.29708844,182.02,182.01,16.96156402]
[1739780972328,14.29708844,182.02,182.01,13.41184853]
[1739780973025,0.03,182.04,182.02,13.41184853]
[1739780973026,14.29688844,182.03,182.02,13.41184853]
[1739780973315,14.29688844,182.03,181.98,0.063]
[1739780973496,10.45138844,182.02,181.98,0.063]
[1739780975333,14.29708844,182.02,182.0,13.41184853]
[1739780975705,10.45138844,182.01,182.0,13.41184853]
[1739780976901,10.45138844,182.01,182.0,16.9645734]
[1739780977128,14.29728844,182.01,182.0,16.9645734]
[1739780978600,14.29728844,182.01,182.0,3.44472487]
[1739780979634,20.0,181.99,181.98,0.063]
[1739780979808,30.45138844,181.99,181.98,0.063]
[1739780981535,34.29768844,181.99,181.98,0.063]
[1739780981744,0.03,182.04,181.99,13.41184853]
[1739780983246,3.8753,182.04,181.99,13.41184853]
[1739780984620,10.45138844,182.01,181.98,0.063]
[1739780985442,10.45138844,181.99,181.98,0.063]
[1739780987510,14.29768844,181.99,181.98,0.063]
[1739780988139,150.79768844,181.99,181.98,0.063]
[1739780988331,56.1032422,181.99,181.98,0.063]
[1739780988523,14.29768844,181.99,181.98,0.063]
[1739780988721,40.19320845,181.99,181.98,0.063]
[1739780991031,0.9999,181.98,181.9,0.03]
[1739780991243,16.34690845,181.92,181.9,0.03]
[1739780991945,16.34690845,181.92,181.91,13.41184853]
[1739780992250,16.34690845,181.92,181.9,3.58796239]
[1739780993156,3.8478,181.93,181.9,16.99981092]
[1739780993157,16.34690845,181.91,181.9,16.99981092]
[1739780993335,40.19470845,181.93,181.9,3.58796239]
[1739780993642,40.19470845,181.93,181.9,0.03]
[1739780993823,20.0,181.93,181.9,0.03]
[1739780995231,16.34690845,181.96,181.9,13.44184853]
[1739780996449,16.34690845,181.96,181.92,13.41184853]
[1739780996954,3.8468,181.97,181.92,13.41184853]
[1739780997455,136.53,182.01,181.92,33.60655698]
[1739780997456,16.34690845,181.99,181.92,33.60655698]
[1739780997627,20.19320845,182.0,181.94,13.41184853]
[1739780998549,36.34690845,181.99,181.92,16.34690845]
[1739780998746,16.34690845,181.97,181.91,1.5337]
[1739780999351,16.34690845,181.97,181.92,13.41184853]
[1739780999736,3.8469,181.96,181.92,13.41184853]
[1739781000351,3.8469,181.96,181.9,22.40730845]
[1739781000352,20.19380845,181.96,181.9,0.03]
[1739781000529,16.34690845,181.93,181.9,0.03]
[1739781000730,16.34690845,181.92,181.9,0.03]
[1739781001631,3.848,181.91,181.9,0.03]
[1739781003362,20.19460845,181.93,181.9,0.03]
[1739781003533,102.49430845,181.95,181.9,0.03]
[1739781003856,16.34690845,181.99,181.92,29.78875698]
[1739781004265,1.534,182.02,181.94,13.41184853]
[1739781004444,20.19260845,182.02,181.96,13.41184853]
[1739781004847,16.34690845,182.0,181.94,1.5254]
[1739781005231,16.34690845,181.99,181.92,16.37690845]
[1739781005440,20.19300845,182.0,181.93,16.34690845]
[1739781005750,20.19300845,182.0,181.94,13.41184853]
[1739781006063,16.34690845,181.97,181.92,0.03]
[1739781006357,16.34690845,181.98,181.92,0.03]
[1739781006558,16.34690845,181.97,181.92,0.03]
[1739781007263,20.19370845,181.97,181.92,0.03]
[1739781007622,16.34690845,181.96,181.92,3.57907514]
[1739781007880,16.34690845,181.96,181.93,13.41184853]
[1739781008535,3.8471,181.96,181.93,13.41184853]
[1739781009342,20.19400845,181.96,181.92,0.03]
[1739781009740,36.34690845,181.97,181.92,0.03]
[1739781009975,16.34690845,181.99,181.93,13.41184853]
[1739781010156,238.99300845,182.0,181.94,13.41184853]
[1739781010356,16.34690845,181.99,181.94,13.41184853]
[1739781011079,16.34690845,181.99,181.93,13.41184853]
[1739781011285,222.6461,182.0,181.92,0.03]
[1739781011286,16.34690845,181.97,181.92,0.03]
[1739781011494,16.34690845,181.96,181.92,0.03]
[1739781011679,16.34690845,181.98,181.92,0.03]
[1739781011883,20.19360845,181.98,181.92,0.03]
[1739781013890,3.8463,181.99,181.93,13.41184853]
[1739781014199,218.8,182.0,181.95,13.41184853]
[1739781014371,0.03,182.01,181.96,13.41184853]
[1739781015098,0.03,182.01,181.97,13.41184853]
[1739781016597,0.03,182.01,181.97,29.75875698]
[1739781017274,0.03,182.01,181.99,13.41184853]
[1739781017475,0.03,182.01,181.98,13.41184853]
[1739781018506,0.03,182.01,181.96,16.34690845]
[1739781018890,0.03,182.01,181.98,13.41184853]
[1739781019417,0.03,182.01,181.98,31.26415698]
[1739781019791,0.03,182.01,181.98,14.91724853]
[1739781020129,0.03,182.01,181.98,35.11065698]
[1739781020414,0.03,182.01,182.0,13.41184853]
[1739781020596,0.03,182.01,181.98,1.5054]
[1739781020793,0.03,182.01,181.99,13.41184853]
[1739781022690,0.03,182.01,181.96,13.41184853]
[1739781023021,0.03,182.01,181.94,16.34690845]
[1739781023182,0.03,182.01,181.95,29.75875698]
[1739781023383,0.03,182.01,181.98,13.41184853]
[1739781023791,16.37690845,182.01,181.98,13.41184853]
[1739781024413,0.03,182.01,181.98,13.41184853]
[1739781025497,0.03,182.01,181.98,17.25824853]
[1739781026639,0.03,182.01,181.98,33.60515698]
[1739781028110,0.03,182.01,182.0,13.41184853]
[1739781028522,0.03,182.01,182.0,17.25794853]
[1739781028841,0.03,182.01,182.0,33.60485698]
[1739781029254,0.03,182.04,182.0,35.15745698]
[1739781029557,0.03,182.04,182.03,29.75875698]
[1739781031045,0.03,182.04,182.03,33.60425698]
[1739781031359,0.03,182.04,182.03,37.1536839]
[1739781032228,0.03,182.04,182.03,16.96127545]
[1739781033950,0.03,182.04,182.03,13.41184853]
[1739781041674,10.47770554,182.04,182.03,13.41184853]
[1739781042040,10.47770554,182.04,182.01,0.063]
[1739781042239,10.44770554,182.02,182.01,0.063]
[1739781044248,14.29340554,182.02,182.01,0.063]
[1739781044783,20.18865924,182.02,182.01,0.063]
[1739781052759,20.21865924,182.02,182.01,0.063]
[1739781055158,0.03,182.02,182.01,0.063]
[1739781059388,0.03,182.02,182.01,13.47484853]
[1739781059562,0.03,182.02,182.01,29.81780777]
[1739781059765,0.03,182.04,182.03,13.41184853]
[1739781059980,0.03,182.04,182.03,29.75480777]
[1739781060298,0.03,182.04,182.03,33.60030777]
[1739781060463,0.03,182.04,182.03,37.15588001]
[1739781061371,0.063,182.05,182.03,37.15588001]
[1739781061575,0.063,182.05,182.04,29.75480777]
[1739781061771,0.063,182.05,182.04,13.41184853]
[1739781062677,16.40595924,182.05,182.04,13.41184853]
[1739781063260,20.25095924,182.05,182.01,0.063]
[1739781063470,16.34295924,182.02,182.01,0.063]
[1739781065393,20.18865924,182.02,182.01,0.063]
[1739781068369,20.0,182.03,182.01,0.063]
[1739781068589,0.03,182.04,182.01,0.063]
[1739781068797,0.03,182.04,182.01,13.47484853]
[1739781069212,0.03,182.04,182.01,16.40595924]
[1739781069518,0.03,182.04,182.03,13.41184853]
[1739781070697,0.03,182.04,182.03,16.96958204]
[1739781071274,16.37295924,182.04,182.03,16.96958204]
[1739781071877,0.03,182.04,182.03,13.41184853]
[1739781074390,16.37295924,182.04,182.03,13.41184853]
[1739781074796,20.21825924,182.04,182.03,13.41184853]
[1739781074990,20.21825924,182.04,182.01,0.063]
[1739781075218,16.34295924,182.02,182.01,0.063]
[1739781076794,20.18865924,182.02,182.01,0.063]
[1739781081312,20.0,181.99,181.97,0.03]
[1739781081500,36.34295924,181.98,181.97,0.03]
[1739781082612,40.18945924,181.98,181.97,0.03]
[1739781083799,56.53241848,181.98,181.97,0.03]
[1739781085223,59.65337445,181.98,181.97,0.03]
[1739781085387,0.9999,181.97,181.92,0.03]
[1739781085591,59.65347445,181.98,181.92,0.03]
[1739781085592,16.34295924,181.93,181.92,0.03]
[1739781087218,16.34295924,181.95,181.92,0.03]
[1739781087427,16.34295924,181.96,181.92,0.03]
[1739781087996,16.34295924,181.95,181.92,0.03]
[1739781088208,3.8467,181.97,181.92,0.03]
[1739781088209,16.34295924,181.94,181.92,0.03]
[1739781088600,16.34295924,181.93,181.92,0.03]
[1739781089013,20.19055924,181.93,181.92,0.03]
[1739781090313,23.8476,181.93,181.92,0.03]
[1739781090521,3.8476,181.93,181.92,0.03]
[1739781090720,40.19055924,181.93,181.92,0.03]
[1739781092022,20.0,181.93,181.92,0.03]
[1739781092445,3.8475,181.94,181.92,0.03]
[1739781092625,40.19015924,181.95,181.92,0.03]
[1739781093249,16.34295924,181.94,181.92,0.03]
[1739781094613,16.34295924,181.93,181.92,0.03]
[1739781094844,36.34295924,181.93,181.92,0.03]
[1739781095019,20.0,181.93,181.92,0.03]
[1739781095637,23.8476,181.93,181.92,0.03]
[1739781095813,20.19055924,181.93,181.92,0.03]
[1739781096213,3.8476,181.93,181.92,0.03]
[1739781096717,23.8476,181.93,181.92,0.03]
[1739781097142,3.8476,181.93,181.92,0.03]
[1739781097314,20.19055924,181.93,181.92,0.03]
[1739781097519,102.49055924,181.93,181.92,0.03]
[1739781100944,20.0,181.91,181.9,0.03]
[1739781101156,36.34295924,181.91,181.9,0.03]
[1739781101326,36.34295924,181.91,181.89,0.03]
[1739781101327,37.34285924,181.91,181.89,0.03]
[1739781101525,52.68591848,181.9,181.89,0.03]
[1739781101727,52.68591848,181.9,181.82,0.063]
[1739781101728,0.9999,181.89,181.82,0.063]
[1739781101929,16.34295924,181.84,181.82,0.063]
[1739781102729,16.34295924,181.83,181.82,0.063]
[1739781103055,20.19265924,181.83,181.82,0.063]
[1739781107867,21.19255924,181.83,181.82,0.063]
[1739781108033,21.19255924,181.83,181.82,0.0001]
[1739781108234,22.19255924,181.83,181.82,0.0001]
[1739781110167,1.9999,181.82,181.81,0.0001]
[1739781110366,18.34285924,181.82,181.81,0.0001]
[1739781110558,34.68581848,181.82,181.81,0.0001]
[1739781111071,38.53571848,181.82,181.81,0.0001]
[1739781112262,37.53571848,181.82,181.81,0.0001]
[1739781112454,38.53571848,181.82,181.81,0.0001]
[1739781113053,21.19275924,181.82,181.81,0.0001]
[1739781113359,20.19285924,181.82,181.81,0.0001]